[Event "Turkish Cup 2022"]
[Site "Sakarya"]
[Date "2022.03.29"]
[Round "7.26"]
[White "Kocakaplan, Emre"]
[Black "Dolek, Gokalp Deniz"]
[Result "0-1"]
[ECO "D45"]
[WhiteElo "1846"]
[BlackElo "1520"]
[Annotator "NA"]
[PlyCount "126"]
[EventDate "2022.03.25"]
[EventType "swiss"]
[EventCountry "TUR"]
[SourceTitle "playchess.com"]
[Source "ChessBase"]
[SourceQuality "1"]
[TimeControl "5400+30"]

1. c4 e6 2. Nc3 d5 3. e3 Nf6 4. Nf3 c6 5. b3 {[%emt 0:02:00]} Nbd7 {[%emt 0:05:00]} 6. Bb2 {[%emt 0:01:30]} Be7 {[%emt 0:02:30]} 7. Be2 {[%emt 0:03:30]} O-O {[%emt 0:00:30]} 8. O-O {[%emt 0:00:00]} b6 {[%emt 0:03:30]} 9. d4 {[%emt 0:02:00]} Bb7 {[%emt 0:00:30]} 10. Qc2 {[%emt 0:05:30]} Rc8 {[%emt 0:00:30]} 11. Rfd1 {[%emt 0:00:30]} Qc7 {[%emt 0:00:30]} 12. Rac1 {[%emt 0:00:30]} Rfd8 {[%emt 0:01:30]} 13. Qb1 {[%emt 0:11:30]} Qb8 {[%emt 0:00:30]} 14. h3 {[%emt 0:05:30]} c5 {[%emt 0:01:30]} 15. cxd5 {[%emt 0:01:30]} Nxd5 {[%emt 0:00:30]} 16. Nxd5 {[%emt 0:03:30]} Bxd5 {[%emt 0:00:30]} 17. Bd3 {[%emt 0:20:30]} h6 {[%emt 0:01:30]} 18. e4 {[%emt 0:00:30]} Bb7 {[%emt 0:00:30]} 19. d5 {[%emt 0:03:30]} exd5 {[%emt 0:00:30]} 20. exd5 {[%emt 0:00:00]} Qd6 {[%emt 0:02:30]} 21. Bh7+ {[%emt 0:08:00]} Kf8 {[%emt 0:01:30]} 22. Bf5 {[%emt 0:01:30]} Bf6 {[%emt 0:00:30]} 23. Bxd7 {[%emt 0:11:43]} Rxd7 {[%emt 0:00:30]} 24. Bxf6 {[%emt 0:01:54]} Qxf6 {[%emt 0:00:30]} 25. Qh7 {[%emt 0:00:09]} Ke7 {[%emt 0:04:30]} 26. Ne5 {[%emt 0:05:22]} Rxd5 {[%emt 0:01:30]} 27. Rxd5 {[%emt 0:02:45]} Bxd5 {[%emt 0:00:30]} 28. Re1 {[%emt 0:00:30]} Kd6 {[%emt 0:00:30]} 29. Qd3 {[%emt 0:00:30]} Rd8 {[%emt 0:00:30]} 30. Ng4 {[%emt 0:00:30]} Qg5 {[%emt 0:00:30]} 31. Qg3+ {[%emt 0:07:35]} Kc6 {[%emt 0:05:30]} 32. h4 {[%emt 0:00:08]} Qd2 {[%emt 0:01:30]} 33. Re7 {[%emt 0:00:11]} Be6 {[%emt 0:00:30]} 34. Ne5+ {[%emt 0:03:34]} Kb5 {[%emt 0:00:30]} 35. Rxa7 {[%emt 0:01:03]} Rd5 {[%emt 0:01:30]} 36. Nc4 {[%emt 0:00:30]} Qe1+ {[%emt 0:00:30]} 37. Kh2 {[%emt 0:00:30]} Rd1 {[%emt 0:03:30]} 38. Na3+ {[%emt 0:00:12]} Kc6 {[%emt 0:00:30]} 39. Rc7+ {[%emt 0:00:30]} Kd5 {[%emt 0:00:30]} 40. Qf3+ {[%emt 0:00:30]} Ke5 {[%emt 0:00:30]} 41. Nc2 {[%emt 0:00:30]} Qh1+ {[%emt 0:00:30]} 42. Kg3 {[%emt 0:00:30]} g5 {[%emt 0:00:30]} 43. hxg5 {[%emt 0:00:30]} hxg5 {[%emt 0:00:30]} 44. Qc3+ {[%emt 0:00:30]} Kd6 {[%emt 0:00:30]} 45. Rb7 {[%emt 0:00:30]} Qh4+ {[%emt 0:00:30]} 46. Kf3 {[%emt 0:00:30]} Bd5+ {[%emt 0:00:30]} 47. Ke2 {[%emt 0:00:30]} Qg4+ {[%emt 0:01:30]} 48. f3 {[%emt 0:00:00]} Qxg2+ {[%emt 0:00:00]} 49. Kxd1 {[%emt 0:00:00]} Qxf3+ {[%emt 0:00:00]} 50. Qxf3 {[%emt 0:00:48]} Bxf3+ {[%emt 0:00:00]} 51. Kd2 {[%emt 0:00:18]} Bxb7 {[%emt 0:00:00]} 52. Ne3 {[%emt 0:00:05]} Bd5 {[%emt 0:00:30]} 53. Kd3 {[%emt 0:00:55]} Be6 {[%emt 0:00:00]} 54. Ke4 {[%emt 0:00:08]} f6 {[%emt 0:01:00]} 55. Nd1 {[%emt 0:00:15]} f5+ {[%emt 0:00:00]} 56. Kf3 {[%emt 0:00:08]} Ke5 {[%emt 0:00:00]} 57. Ke3 {[%emt 0:00:47]} f4+ {[%emt 0:00:00]} 58. Kd3 {[%emt 0:00:35]} g4 {[%emt 0:00:00]} 59. Nc3 {[%emt 0:00:30]} g3 {[%emt 0:00:30]} 60. Ke2 {[%emt 0:00:00]} c4 {[%emt 0:00:00]} 61. b4 {[%emt 0:00:06]} Bg4+ {[%emt 0:00:00]} 62. Kf1 {[%emt 0:00:22]} f3 {[%emt 0:00:30]} 63. a4 {[%emt 0:00:30]} Bh3+ {[%emt 0:00:00]} 0-1

[Event "Turkish Cup 2022"]
[Site "Sakarya"]
[Date "2022.03.29"]
[Round "7.27"]
[White "Sahin, Fehim"]
[Black "Isik, Kadri"]
[Result "1-0"]
[ECO "A03"]
[WhiteElo "1648"]
[BlackElo "1858"]
[Annotator "COMBH"]
[PlyCount "36"]
[EventDate "2022.03.25"]
[EventType "swiss"]
[EventCountry "TUR"]
[SourceTitle "playchess.com"]
[Source "ChessBase"]
[SourceQuality "1"]
[TimeControl "5400+30"]

1. f4 c5 2. Nf3 d5 3. g3 g6 4. Bg2 Bg7 5. O-O Nf6 6. d3 O-O {[%emt 0:03:30]} 7. Ne5 {[%emt 0:04:00]} Nc6 {[%emt 0:01:30]} 8. Nxc6 {[%emt 0:03:30]} bxc6 {[%emt 0:00:30]} 9. e4 {[%emt 0:00:30]} e5 {[%emt 0:00:30]} 10. Nc3 {[%emt 0:00:30]} exf4 {[%emt 0:00:30]} 11. gxf4 {[%emt 0:00:30]} Ng4 {[%emt 0:00:30]} 12. Qf3 {[%emt 0:00:30]} Bd4+ {[%emt 0:00:30]} 13. Kh1 {[%emt 0:00:30]} Qh4 {[%emt 0:00:30]} 14. h3 {[%emt 0:00:30]} Nf2+ {[%emt 0:00:30]} 15. Kh2 {[%emt 0:05:30]} Rb8 {[%emt 0:35:30]} 16. f5 {[%emt 0:04:30]} gxf5 {[%emt 0:03:30]} 17. exf5 {[%emt 0:00:30]} h5 {[%emt 0:13:30]} 18. Qg3+ {[%emt 0:00:00]} Ng4+ {[%emt 0:02:30]} 1-0

[Event "Turkish Cup 2022"]
[Site "Sakarya"]
[Date "2022.03.29"]
[Round "7.28"]
[White "Er, Mira"]
[Black "Unesi, Erdal"]
[Result "0-1"]
[ECO "B43"]
[WhiteElo "1415"]
[BlackElo "1861"]
[Annotator "NA"]
[PlyCount "68"]
[EventDate "2022.03.25"]
[EventType "swiss"]
[EventCountry "TUR"]
[SourceTitle "playchess.com"]
[Source "ChessBase"]
[SourceQuality "1"]
[TimeControl "5400+30"]

1. e4 c5 2. Nf3 e6 3. d4 cxd4 4. Nxd4 a6 5. Nc3 Qc7 6. g3 Bb4 7. Bd2 {[%emt 0:02:00]} Nc6 {[%emt 0:09:00]} 8. Nb3 {[%emt 0:02:30]} Nf6 {[%emt 0:00:30]} 9. Bg2 {[%emt 0:02:30]} Ne5 {[%emt 0:01:30]} 10. a3 {[%emt 0:00:30]} Be7 {[%emt 0:00:30]} 11. Bf4 {[%emt 0:01:30]} d6 {[%emt 0:00:30]} 12. Bxe5 {[%emt 0:00:30]} dxe5 {[%emt 0:00:30]} 13. Qe2 {[%emt 0:02:30]} b5 {[%emt 0:03:30]} 14. O-O {[%emt 0:01:30]} O-O {[%emt 0:06:30]} 15. Rfd1 {[%emt 0:00:30]} Bb7 {[%emt 0:04:30]} 16. Rd3 {[%emt 0:01:30]} Rfd8 {[%emt 0:01:30]} 17. Rad1 {[%emt 0:00:30]} Rac8 {[%emt 0:02:30]} 18. R1d2 {[%emt 0:02:30]} h6 {[%emt 0:04:30]} 19. Qd1 {[%emt 0:00:30]} Rxd3 {[%emt 0:00:30]} 20. Rxd3 {[%emt 0:00:30]} Qb6 {[%emt 0:04:30]} 21. h3 {[%emt 0:04:30]} a5 {[%emt 0:01:30]} 22. Qe2 {[%emt 0:37:30]} b4 {[%emt 0:06:30]} 23. Nb5 {[%emt 0:01:30]} a4 {[%emt 0:02:30]} 24. Nd2 {[%emt 0:11:30]} Ba6 {[%emt 0:04:30]} 25. c4 {[%emt 0:00:30]} bxc3 {[%emt 0:00:00]} 26. Nxc3 {[%emt 0:00:30]} Qxb2 {[%emt 0:02:00]} 27. Ncb1 {[%emt 0:02:30]} Bxd3 {[%emt 0:08:30]} 28. Qxd3 {[%emt 0:00:30]} Rd8 {[%emt 0:00:30]} 29. Qc4 {[%emt 0:00:30]} Rxd2 {[%emt 0:01:30]} 30. Nxd2 {[%emt 0:00:30]} Qxd2 {[%emt 0:00:30]} 31. Qxa4 {[%emt 0:00:30]} Qe1+ {[%emt 0:00:00]} 32. Kh2 {[%emt 0:00:30]} Qxf2 {[%emt 0:00:00]} 33. Qc6 {[%emt 0:00:30]} Bc5 {[%emt 0:01:30]} 34. Qa8+ {[%emt 0:00:30]} Kh7 {[%emt 0:00:30]} 0-1

[Event "Turkish Cup 2022"]
[Site "Sakarya"]
[Date "2022.03.29"]
[Round "7.29"]
[White "Bagci, Hikmet"]
[Black "Anacak, Hasan Gunes"]
[Result "1-0"]
[ECO "B68"]
[WhiteElo "1630"]
[BlackElo "1798"]
[Annotator "COMBH"]
[PlyCount "93"]
[EventDate "2022.03.25"]
[EventType "swiss"]
[EventCountry "TUR"]
[SourceTitle "playchess.com"]
[Source "ChessBase"]
[SourceQuality "1"]
[TimeControl "5400+30"]

1. e4 c5 2. Nf3 d6 3. d4 cxd4 4. Nxd4 Nf6 5. Nc3 Nc6 6. Bg5 e6 7. Qd2 a6 8. O-O-O Bd7 {[%emt 0:03:30]} 9. Be2 {[%emt 0:07:00]} b5 {[%emt 0:07:30]} 10. f4 {[%emt 0:03:30]} Be7 {[%emt 0:21:30]} 11. Nxc6 {[%emt 0:00:30]} Bxc6 {[%emt 0:00:30]} 12. Bxf6 {[%emt 0:00:30]} gxf6 {[%emt 0:00:30]} 13. Bf3 {[%emt 0:01:30]} Qb6 {[%emt 0:15:30]} 14. Kb1 {[%emt 0:02:30]} O-O-O {[%emt 0:07:30]} 15. Rhe1 {[%emt 0:03:30]} Rd7 {[%emt 0:03:30]} 16. Ne2 {[%emt 0:01:30]} Rc7 {[%emt 0:00:30]} 17. Nd4 {[%emt 0:01:30]} Bd7 {[%emt 0:01:30]} 18. f5 {[%emt 0:00:30]} e5 {[%emt 0:15:30]} 19. Ne2 {[%emt 0:03:30]} b4 {[%emt 0:00:30]} 20. Qd5 {[%emt 0:00:30]} Be8 {[%emt 0:03:47]} 21. Rc1 {[%emt 0:01:30]} Kb8 {[%emt 0:00:57]} 22. c3 {[%emt 0:01:30]} Bf8 {[%emt 0:06:14]} 23. cxb4 {[%emt 0:00:30]} Bc6 {[%emt 0:00:54]} 24. Qd2 {[%emt 0:01:30]} h5 {[%emt 0:00:29]} 25. Rc3 {[%emt 0:01:30]} Bh6 {[%emt 0:01:16]} 26. Qd1 {[%emt 0:00:30]} h4 {[%emt 0:01:07]} 27. Ka1 {[%emt 0:01:30]} Rd8 {[%emt 0:01:05]} 28. a3 {[%emt 0:00:30]} Rcd7 {[%emt 0:02:35]} 29. Qc2 {[%emt 0:00:30]} Bb7 {[%emt 0:00:48]} 30. Rd1 {[%emt 0:01:30]} Be3 {[%emt 0:03:07]} 31. Rdd3 {[%emt 0:00:30]} Bg1 {[%emt 0:00:45]} 32. h3 {[%emt 0:00:30]} Bf2 {[%emt 0:00:42]} 33. Rc4 {[%emt 0:02:30]} d5 {[%emt 0:02:19]} 34. exd5 {[%emt 0:00:30]} Bxd5 {[%emt 0:00:00]} 35. Bxd5 {[%emt 0:00:30]} Rxd5 {[%emt 0:00:00]} 36. Rxd5 {[%emt 0:00:30]} Rxd5 {[%emt 0:00:00]} 37. Rc8+ {[%emt 0:01:30]} Kb7 {[%emt 0:00:00]} 38. Rf8 {[%emt 0:01:30]} Qd6 {[%emt 0:00:39]} 39. Rxf7+ {[%emt 0:00:30]} Kb8 {[%emt 0:00:30]} 40. Nc3 {[%emt 0:01:30]} Rd2 {[%emt 0:03:01]} 41. Qa4 {[%emt 0:00:30]} Bb6 {[%emt 0:00:30]} 42. Qxa6 {[%emt 0:00:30]} Bc7 {[%emt 0:00:30]} 43. Qb5+ {[%emt 0:00:30]} Ka8 {[%emt 0:02:05]} 44. Qc4 {[%emt 0:06:30]} Kb8 {[%emt 0:00:37]} 45. Nb5 {[%emt 0:00:30]} Rd1+ {[%emt 0:00:19]} 46. Ka2 {[%emt 0:00:30]} Rc1 {[%emt 0:00:41]} 47. Nxd6 {[%emt 0:00:30]} 1-0

[Event "Turkish Cup 2022"]
[Site "Sakarya"]
[Date "2022.03.29"]
[Round "7.30"]
[White "Demirag, Gokhan"]
[Black "Surucu, Efe Mustafa"]
[Result "1-0"]
[ECO "E90"]
[WhiteElo "1946"]
[BlackElo "1598"]
[Annotator "NA"]
[PlyCount "80"]
[EventDate "2022.03.25"]
[EventType "swiss"]
[EventCountry "TUR"]
[SourceTitle "playchess.com"]
[Source "ChessBase"]
[SourceQuality "1"]
[TimeControl "5400+30"]

1. Nf3 Nf6 2. c4 g6 3. Nc3 Bg7 4. e4 d6 5. d4 Nc6 6. h3 O-O 7. Bg5 h6 8. Be3 e5 {[%emt 0:04:30]} 9. d5 {[%emt 0:03:00]} Ne7 {[%emt 0:00:30]} 10. Qd2 {[%emt 0:01:30]} Kh7 {[%emt 0:01:30]} 11. g4 {[%emt 0:00:00]} Ne8 {[%emt 0:01:30]} 12. Bd3 {[%emt 0:00:00]} a6 {[%emt 0:02:30]} 13. O-O-O {[%emt 0:00:30]} b5 {[%emt 0:00:00]} 14. c5 {[%emt 0:00:30]} dxc5 {[%emt 0:01:00]} 15. Bxc5 {[%emt 0:01:30]} Nd6 {[%emt 0:00:30]} 16. Rhg1 {[%emt 0:02:30]} b4 {[%emt 0:06:30]} 17. Bxb4 {[%emt 0:00:30]} a5 {[%emt 0:02:30]} 18. Bc5 {[%emt 0:04:30]} a4 {[%emt 0:07:30]} 19. h4 {[%emt 0:00:30]} Ba6 {[%emt 0:01:30]} 20. Bxa6 {[%emt 0:05:30]} Rxa6 {[%emt 0:00:30]} 21. Qe2 {[%emt 0:00:30]} Ra8 {[%emt 0:00:30]} 22. Nd2 {[%emt 0:03:30]} Nec8 {[%emt 0:11:30]} 23. h5 {[%emt 0:07:30]} g5 {[%emt 0:06:30]} 24. Nc4 {[%emt 0:04:30]} Re8 {[%emt 0:12:30]} 25. Ne3 {[%emt 0:06:30]} Nb6 {[%emt 0:03:30]} 26. Bxd6 {[%emt 0:12:30]} cxd6 {[%emt 0:01:30]} 27. Rd2 {[%emt 0:05:30]} Nd7 {[%emt 0:02:30]} 28. Rc2 {[%emt 0:03:30]} Nc5 {[%emt 0:02:30]} 29. Kd2 {[%emt 0:08:30]} Rb8 {[%emt 0:09:30]} 30. Rd1 {[%emt 0:11:30]} Rb4 {[%emt 0:00:30]} 31. Ke1 {[%emt 0:00:30]} Qb6 {[%emt 0:04:30]} 32. Rdd2 {[%emt 0:03:20]} Rb8 {[%emt 0:02:42]} 33. Kf1 {[%emt 0:00:38]} Qd8 {[%emt 0:00:30]} 34. Qf3 {[%emt 0:00:00]} Qa5 {[%emt 0:06:38]} 35. Qxf7 {[%emt 0:00:31]} Rf8 {[%emt 0:00:30]} 36. Qg6+ {[%emt 0:00:30]} Kh8 {[%emt 0:00:30]} 37. Nf5 {[%emt 0:00:30]} Rb7 {[%emt 0:00:30]} 38. Qxd6 {[%emt 0:00:30]} Rb6 {[%emt 0:00:30]} 39. Qc7 {[%emt 0:00:30]} Qa6+ {[%emt 0:00:30]} 40. Kg2 {[%emt 0:00:30]} Kg8 {[%emt 0:01:14]} 1-0

[Event "Turkish Cup 2022"]
[Site "Sakarya"]
[Date "2022.03.29"]
[Round "7.31"]
[White "Kilic, Nurullah"]
[Black "Ozcan, Kadir Kutay"]
[Result "0-1"]
[ECO "B70"]
[WhiteElo "1171"]
[BlackElo "1878"]
[Annotator "NA"]
[PlyCount "122"]
[EventDate "2022.03.25"]
[EventType "swiss"]
[EventCountry "TUR"]
[SourceTitle "playchess.com"]
[Source "ChessBase"]
[SourceQuality "1"]
[TimeControl "5400+30"]

1. e4 c5 {[%emt 0:06:00]} 2. Nf3 {[%emt 0:01:30]} d6 {[%emt 0:00:30]} 3. d4 {[%emt 0:00:30]} cxd4 {[%emt 0:00:30]} 4. Nxd4 {[%emt 0:00:30]} Nf6 {[%emt 0:00:30]} 5. Nc3 {[%emt 0:01:30]} g6 {[%emt 0:00:30]} 6. Be3 {[%emt 0:00:30]} a6 {[%emt 0:01:30]} 7. Be2 {[%emt 0:05:30]} Bg7 {[%emt 0:00:30]} 8. Qd2 {[%emt 0:00:30]} h5 {[%emt 0:00:30]} 9. h3 {[%emt 0:03:30]} Nbd7 {[%emt 0:02:30]} 10. Nb3 {[%emt 0:07:30]} b5 {[%emt 0:02:30]} 11. f3 {[%emt 0:07:30]} Bb7 {[%emt 0:02:30]} 12. a3 {[%emt 0:03:30]} Rc8 {[%emt 0:00:30]} 13. O-O {[%emt 0:00:30]} Ne5 {[%emt 0:00:30]} 14. Rad1 {[%emt 0:00:30]} O-O {[%emt 0:03:30]} 15. Bd4 {[%emt 0:09:30]} Nc4 {[%emt 0:09:30]} 16. Bxc4 {[%emt 0:03:30]} Rxc4 {[%emt 0:02:30]} 17. Qe3 {[%emt 0:01:30]} Qa8 {[%emt 0:06:30]} 18. Na5 {[%emt 0:03:30]} Rcc8 {[%emt 0:07:30]} 19. e5 {[%emt 0:02:30]} dxe5 {[%emt 0:03:30]} 20. Bxe5 {[%emt 0:01:30]} Rfd8 {[%emt 0:00:30]} 21. Qb6 {[%emt 0:05:30]} Bd5 {[%emt 0:06:30]} 22. Bxf6 {[%emt 0:08:30]} Bxf6 {[%emt 0:00:30]} 23. Nxd5 {[%emt 0:00:30]} Rxd5 {[%emt 0:00:30]} 24. c3 {[%emt 0:00:30]} Rcd8 {[%emt 0:03:30]} 25. Rxd5 {[%emt 0:04:30]} Rxd5 {[%emt 0:01:30]} 26. Qc6 {[%emt 0:03:30]} Qa7+ {[%emt 0:06:30]} 27. Kh1 {[%emt 0:00:30]} Rd2 {[%emt 0:00:30]} 28. Nb7 {[%emt 0:01:30]} Kg7 {[%emt 0:03:30]} 29. b4 {[%emt 0:04:30]} Qe3 {[%emt 0:05:30]} 30. Nc5 {[%emt 0:02:34]} Be5 {[%emt 0:10:45]} 31. Qe4 {[%emt 0:04:51]} Qxe4 {[%emt 0:01:04]} 32. fxe4 {[%emt 0:00:30]} Ra2 {[%emt 0:00:30]} 33. Nxa6 {[%emt 0:00:30]} Rxa3 {[%emt 0:00:30]} 34. Nc5 {[%emt 0:00:30]} Bxc3 {[%emt 0:00:30]} 35. Rb1 {[%emt 0:00:53]} Ra1 {[%emt 0:03:36]} 36. Rxa1 {[%emt 0:00:30]} Bxa1 {[%emt 0:01:08]} 37. g3 {[%emt 0:01:49]} Bc3 {[%emt 0:02:52]} 38. Nd3 {[%emt 0:00:25]} f5 {[%emt 0:00:38]} 39. exf5 {[%emt 0:02:11]} gxf5 {[%emt 0:00:30]} 40. Nf4 {[%emt 0:00:00]} Bxb4 {[%emt 0:00:03]} 41. Ne6+ {[%emt 0:00:00]} Kf6 {[%emt 0:01:23]} 42. Nc7 {[%emt 0:00:00]} Bd6 {[%emt 0:00:53]} 43. Nxb5 {[%emt 0:00:14]} Bxg3 {[%emt 0:00:00]} 44. Kg2 {[%emt 0:01:23]} h4 {[%emt 0:00:20]} 45. Nc3 {[%emt 0:02:22]} Be1 {[%emt 0:01:01]} 46. Nd5+ {[%emt 0:00:50]} Kf7 {[%emt 0:00:48]} 47. Kf3 {[%emt 0:01:28]} e5 {[%emt 0:00:26]} 48. Ne3 {[%emt 0:01:16]} Ke6 {[%emt 0:00:30]} 49. Ng2 {[%emt 0:00:53]} e4+ {[%emt 0:00:43]} 50. Ke2 {[%emt 0:00:30]} Bg3 {[%emt 0:00:30]} 51. Ne3 {[%emt 0:00:30]} Bf4 {[%emt 0:01:02]} 52. Nc4 {[%emt 0:01:03]} Bg5 {[%emt 0:00:55]} 53. Kf2 {[%emt 0:00:30]} f4 {[%emt 0:00:14]} 54. Nb2 {[%emt 0:02:37]} Kd5 {[%emt 0:00:30]} 55. Nd1 {[%emt 0:00:30]} Bf6 {[%emt 0:00:30]} 56. Ke2 {[%emt 0:00:30]} Bd4 {[%emt 0:00:09]} 57. Kf1 {[%emt 0:00:44]} Kc4 {[%emt 0:00:30]} 58. Ke2 {[%emt 0:00:30]} Kb3 {[%emt 0:00:30]} 59. Kd2 {[%emt 0:00:30]} f3 {[%emt 0:00:30]} 60. Ke1 {[%emt 0:00:30]} Kc2 {[%emt 0:00:30]} 61. Nf2 {[%emt 0:00:30]} Bxf2+ {[%emt 0:00:00]} 0-1

[Event "Turkish Cup 2022"]
[Site "Sakarya"]
[Date "2022.03.29"]
[Round "7.32"]
[White "Kilic, Cihan"]
[Black "Ulku, Ahmet"]
[Result "1/2-1/2"]
[ECO "A48"]
[WhiteElo "1874"]
[BlackElo "1284"]
[Annotator "COMBH"]
[PlyCount "122"]
[EventDate "2022.03.25"]
[EventType "swiss"]
[EventCountry "TUR"]
[SourceTitle "playchess.com"]
[Source "ChessBase"]
[SourceQuality "1"]
[TimeControl "5400+30"]

1. d4 Nf6 2. Nf3 g6 3. Bf4 Bg7 4. Nbd2 d6 5. e3 O-O 6. h3 Nbd7 {[%emt 0:01:30]} 7. Bc4 {[%emt 0:06:00]} b6 {[%emt 0:01:30]} 8. O-O {[%emt 0:01:30]} Bb7 {[%emt 0:00:30]} 9. a4 {[%emt 0:00:30]} a5 {[%emt 0:01:30]} 10. c3 {[%emt 0:00:30]} Re8 {[%emt 0:03:30]} 11. Qb3 {[%emt 0:02:30]} e6 {[%emt 0:01:30]} 12. Rae1 {[%emt 0:02:30]} Ne4 {[%emt 0:04:30]} 13. Nxe4 {[%emt 0:00:30]} Bxe4 {[%emt 0:00:30]} 14. Nd2 {[%emt 0:00:30]} Bb7 {[%emt 0:00:30]} 15. e4 {[%emt 0:00:30]} Nf6 {[%emt 0:02:30]} 16. Bg5 {[%emt 0:06:30]} h6 {[%emt 0:07:30]} 17. Bh4 {[%emt 0:01:30]} Qd7 {[%emt 0:02:30]} 18. f4 {[%emt 0:03:30]} Bc6 {[%emt 0:11:30]} 19. Bb5 {[%emt 0:00:30]} Bxb5 {[%emt 0:00:30]} 20. axb5 {[%emt 0:00:00]} d5 {[%emt 0:11:30]} 21. e5 {[%emt 0:07:00]} a4 {[%emt 0:02:30]} 22. Qc2 {[%emt 0:00:30]} Nh7 {[%emt 0:00:30]} 23. c4 {[%emt 0:05:30]} dxc4 {[%emt 0:00:30]} 24. Qxc4 {[%emt 0:00:30]} Ra5 {[%emt 0:01:30]} 25. Rc1 {[%emt 0:02:30]} Qxb5 {[%emt 0:03:30]} 26. Qxc7 {[%emt 0:01:30]} Qxb2 {[%emt 0:01:30]} 27. Nc4 {[%emt 0:01:30]} Qxd4+ {[%emt 0:06:30]} 28. Bf2 {[%emt 0:02:30]} Qd5 {[%emt 0:01:30]} 29. Nxa5 {[%emt 0:00:30]} bxa5 {[%emt 0:01:30]} 30. Rc5 {[%emt 0:01:30]} Qd2 {[%emt 0:01:30]} 31. Rxa5 {[%emt 0:01:30]} Qb4 {[%emt 0:04:30]} 32. Bc5 {[%emt 0:00:30]} Qb3 {[%emt 0:06:30]} 33. Ra7 {[%emt 0:01:30]} Kh8 {[%emt 0:00:30]} 34. Qxf7 {[%emt 0:00:30]} Rg8 {[%emt 0:00:30]} 35. Bd6 {[%emt 0:00:30]} Qg3 {[%emt 0:01:30]} 36. Qxe6 {[%emt 0:01:30]} Qe3+ {[%emt 0:00:30]} 37. Kh1 {[%emt 0:01:30]} Qxa7 {[%emt 0:00:00]} 38. Qxg6 {[%emt 0:00:30]} Qb7 {[%emt 0:01:00]} 39. Rf3 {[%emt 0:00:30]} Bf8 {[%emt 0:01:30]} 40. Qe6 {[%emt 0:05:30]} Qb2 {[%emt 0:02:23]} 41. g4 {[%emt 0:01:30]} Qe2 {[%emt 0:08:07]} 42. Qd5 {[%emt 0:01:30]} Bxd6 {[%emt 0:04:28]} 43. exd6 {[%emt 0:00:30]} Nf6 {[%emt 0:03:40]} 44. Qd3 {[%emt 0:02:30]} Qe1+ {[%emt 0:00:30]} 45. Rf1 {[%emt 0:00:30]} Qe4+ {[%emt 0:02:25]} 46. Qxe4 {[%emt 0:04:30]} Nxe4 {[%emt 0:00:30]} 47. Ra1 {[%emt 0:00:30]} Nc5 {[%emt 0:00:30]} 48. Rc1 {[%emt 0:00:30]} Nd3 {[%emt 0:00:39]} 49. Rc7 {[%emt 0:04:30]} Nxf4 {[%emt 0:01:31]} 50. d7 {[%emt 0:03:30]} Ne6 {[%emt 0:00:16]} 51. Rc6 {[%emt 0:00:30]} Nd8 {[%emt 0:00:52]} 52. Rxh6+ {[%emt 0:00:30]} Kg7 {[%emt 0:00:01]} 53. Ra6 {[%emt 0:00:00]} Kf7 {[%emt 0:00:40]} 54. Rxa4 {[%emt 0:00:00]} Ke7 {[%emt 0:00:01]} 55. Kg2 {[%emt 0:00:30]} Kxd7 {[%emt 0:00:18]} 56. Kg3 {[%emt 0:00:30]} Ke6 {[%emt 0:00:32]} 57. h4 {[%emt 0:00:30]} Nf7 {[%emt 0:00:15]} 58. Kf4 {[%emt 0:00:00]} Kf6 {[%emt 0:00:44]} 59. g5+ {[%emt 0:01:00]} Kg6 {[%emt 0:00:29]} 60. Ra6+ {[%emt 0:00:30]} Kh5 {[%emt 0:00:38]} 61. Ra7 {[%emt 0:03:30]} Nxg5 {[%emt 0:00:36]} 1/2-1/2

[Event "Turkish Cup 2022"]
[Site "Sakarya"]
[Date "2022.03.29"]
[Round "7.33"]
[White "Zuberoglu, Ibrahim Berk"]
[Black "Avsar, Gediz"]
[Result "1/2-1/2"]
[ECO "A24"]
[WhiteElo "1780"]
[BlackElo "1506"]
[Annotator "COMBH"]
[PlyCount "91"]
[EventDate "2022.03.25"]
[EventType "swiss"]
[EventCountry "TUR"]
[SourceTitle "playchess.com"]
[Source "ChessBase"]
[SourceQuality "1"]
[TimeControl "5400+30"]

1. Nf3 Nf6 2. g3 g6 3. Bg2 Bg7 4. O-O O-O 5. c4 {[%emt 0:06:00]} d6 {[%emt 0:02:00]} 6. Nc3 {[%emt 0:01:30]} e5 {[%emt 0:00:30]} 7. d3 {[%emt 0:00:30]} c6 {[%emt 0:03:30]} 8. Rb1 {[%emt 0:01:30]} a5 {[%emt 0:02:30]} 9. a3 {[%emt 0:00:30]} h6 {[%emt 0:03:30]} 10. b4 {[%emt 0:05:30]} axb4 {[%emt 0:00:30]} 11. axb4 {[%emt 0:00:30]} Be6 {[%emt 0:01:30]} 12. b5 {[%emt 0:06:30]} Qc7 {[%emt 0:03:30]} 13. Nd2 {[%emt 0:08:30]} Nbd7 {[%emt 0:02:30]} 14. Bb2 {[%emt 0:00:30]} Nc5 {[%emt 0:00:30]} 15. Ra1 {[%emt 0:06:30]} Nfd7 {[%emt 0:05:30]} 16. Qc2 {[%emt 0:11:30]} Rxa1 {[%emt 0:06:30]} 17. Rxa1 {[%emt 0:01:30]} f5 {[%emt 0:02:30]} 18. Nb3 {[%emt 0:12:30]} Nxb3 {[%emt 0:05:30]} 19. Qxb3 {[%emt 0:00:30]} Nc5 {[%emt 0:00:30]} 20. Qa2 {[%emt 0:04:30]} e4 {[%emt 0:05:30]} 21. dxe4 {[%emt 0:08:30]} Qf7 {[%emt 0:02:30]} 22. bxc6 {[%emt 0:05:59]} fxe4 {[%emt 0:02:30]} 23. cxb7 {[%emt 0:07:18]} Qxf2+ {[%emt 0:02:30]} 24. Kh1 {[%emt 0:00:08]} Nxb7 {[%emt 0:02:30]} 25. Rf1 {[%emt 0:05:11]} Qd4 {[%emt 0:03:30]} 26. Rxf8+ {[%emt 0:00:30]} Bxf8 {[%emt 0:00:30]} 27. Qb1 {[%emt 0:05:19]} Bg7 {[%emt 0:11:30]} 28. Na4 {[%emt 0:00:25]} Qxc4 {[%emt 0:00:30]} 29. Bxg7 {[%emt 0:00:02]} Qxa4 {[%emt 0:03:30]} 30. Bxh6 {[%emt 0:00:30]} d5 {[%emt 0:00:30]} 31. h4 {[%emt 0:00:30]} Qd7 {[%emt 0:00:30]} 32. Qb4 {[%emt 0:02:03]} Nd6 {[%emt 0:03:30]} 33. Qb8+ {[%emt 0:00:30]} Kh7 {[%emt 0:00:30]} 34. Bf4 {[%emt 0:00:30]} Nf7 {[%emt 0:00:30]} 35. Qb2 {[%emt 0:00:30]} Qe7 {[%emt 0:00:30]} 36. Kh2 {[%emt 0:00:53]} Qd8 {[%emt 0:03:30]} 37. Qd4 {[%emt 0:00:14]} Qe7 {[%emt 0:03:30]} 38. Bd2 {[%emt 0:00:29]} Nh6 {[%emt 0:04:26]} 39. Bc3 {[%emt 0:00:44]} Qf8 {[%emt 0:01:03]} 40. Kg1 {[%emt 0:00:25]} Nf5 {[%emt 0:02:22]} 41. Qe5 {[%emt 0:00:39]} Qg7 {[%emt 0:00:50]} 42. Qxg7+ {[%emt 0:01:17]} Nxg7 {[%emt 0:00:30]} 43. Kf2 {[%emt 0:00:00]} Nf5 {[%emt 0:01:29]} 44. e3 {[%emt 0:00:26]} g5 {[%emt 0:04:07]} 45. hxg5 {[%emt 0:00:30]} Kg6 {[%emt 0:00:30]} 46. Bf6 {[%emt 0:00:00]} 1/2-1/2